bitfinex/quotes_BTCUSD_20240613
["timestamp","ask_amount","ask_price","bid_price","bid_amount"]
[1718318986535,0.69327247,66982.0,66981.0,1.93260331]
[1718318986916,0.76040827,66982.0,66981.0,1.93260331]
[1718318987321,0.69327247,66982.0,66981.0,1.93260331]
[1718318987539,0.76041057,66982.0,66981.0,1.93260331]
[1718318990135,0.69327247,66982.0,66981.0,1.93260331]
[1718318990338,0.62257247,66982.0,66981.0,1.93260331]
[1718318990528,0.69327247,66982.0,66981.0,1.93260331]
[1718318991243,0.76040718,66982.0,66981.0,1.93260331]
[1718318991667,0.76040718,66982.0,66981.0,1.92580679]
[1718318992093,0.76040718,66982.0,66981.0,1.9326042]
[1718318992511,0.62257247,66982.0,66981.0,1.9326042]
[1718318992718,0.69327247,66982.0,66981.0,1.9326042]
[1718318993350,0.76040424,66982.0,66981.0,1.9326042]
[1718318993694,0.69327247,66982.0,66981.0,1.9326042]
[1718318994190,0.76040419,66982.0,66981.0,1.9326042]
[1718318994416,0.69327247,66982.0,66981.0,1.9326042]
[1718318994790,0.76040374,66982.0,66981.0,1.9326042]
[1718318995554,0.69327247,66982.0,66981.0,1.9326042]
[1718318995957,0.74327247,66982.0,66981.0,1.9326042]
[1718318996159,0.91399868,66982.0,66981.0,1.92580679]
[1718318996337,0.91403936,66982.0,66981.0,1.93260084]
[1718318996740,0.8964907,66982.0,66981.0,1.93260084]
[1718318997265,0.72572381,66982.0,66981.0,1.93260084]
[1718318997466,0.986197,66982.0,66981.0,1.93260084]
[1718318997867,0.986197,66982.0,66981.0,1.92580679]
[1718318998270,0.986197,66982.0,66981.0,1.93260163]
[1718318999563,1.00383575,66982.0,66981.0,1.93260163]
[1718319002274,0.71501993,66982.0,66981.0,0.00965484]
[1718319002673,0.71501993,66982.0,66981.0,0.00286]
[1718319003131,0.80143265,66982.0,66981.0,0.00286]
[1718319009347,0.73431062,66982.0,66981.0,0.00286]
[1718319012344,0.82383716,66982.0,66981.0,0.00286]
[1718319013354,0.81639716,66982.0,66981.0,0.00286]
[1718319016136,1.18214769,66982.0,66981.0,0.00286]
[1718319016362,0.5,66972.0,66971.0,0.00085]
[1718319016576,0.85790549,66972.0,66971.0,0.00085]
[1718319016722,0.79073637,66972.0,66971.0,0.00085]
[1718319016924,0.88029519,66972.0,66971.0,0.00085]
[1718319017128,0.79073637,66972.0,66971.0,0.00085]
[1718319017774,0.94793637,66972.0,66971.0,0.00085]
[1718319017967,0.94576417,66972.0,66971.0,0.00485]
[1718319018195,1.06218952,66972.0,66971.0,0.00485]
[1718319019068,0.96030296,66972.0,66971.0,0.00185]
[1718319019494,1.17218952,66972.0,66971.0,0.00185]
[1718319019903,1.11339718,66972.0,66971.0,0.00185]
[1718319020107,1.06071284,66972.0,66971.0,0.00185]
[1718319021123,1.15015905,66972.0,66971.0,0.00185]
[1718319022092,1.07945905,66972.0,66971.0,0.00185]
[1718319022304,1.07945905,66972.0,66971.0,0.14295]
[1718319022305,1.18735587,66972.0,66971.0,0.14295]
[1718319022442,1.21334105,66972.0,66971.0,0.14295]
[1718319023583,1.21210549,66972.0,66971.0,0.14295]
[1718319026029,1.15413883,66972.0,66971.0,0.14295]
[1718319027136,1.21159879,66972.0,66971.0,0.14295]
[1718319027582,1.15413883,66972.0,66971.0,0.14295]
[1718319029179,1.17176406,66972.0,66971.0,0.14295]
[1718319029352,1.22917322,66972.0,66971.0,0.14295]
[1718319033941,1.2712321,66972.0,66971.0,0.14295]
[1718319036514,1.20927325,66972.0,66971.0,0.14295]
[1718319036714,1.27123232,66972.0,66971.0,0.14295]
[1718319039329,1.25360709,66972.0,66971.0,0.14295]
[1718319041150,0.94377888,66972.0,66971.0,0.14295]
[1718319041326,1.25357608,66972.0,66971.0,0.14295]
[1718319042563,0.75357608,66972.0,66971.0,0.14295]
[1718319045101,0.7713301,66972.0,66971.0,0.14295]
[1718319046189,0.78029408,66972.0,66971.0,0.14295]
[1718319047514,0.78029408,66972.0,66971.0,0.00185]
[1718319047515,0.81603287,66972.0,66971.0,0.00185]
[1718319047732,0.7713301,66972.0,66971.0,0.00185]
[1718319047940,0.81603287,66972.0,66971.0,0.00185]
[1718319048986,0.88819283,66972.0,66971.0,0.00185]
[1718319049218,0.84349006,66972.0,66971.0,0.00185]
[1718319049428,0.93289561,66972.0,66971.0,0.00185]
[1718319049700,1.14434605,66972.0,66971.0,0.00185]
[1718319050607,0.9842405,66972.0,66971.0,0.00185]
[1718319050760,1.0549405,66972.0,66971.0,0.00185]
[1718319051169,0.9842405,66972.0,66971.0,0.00185]
[1718319051392,1.0549405,66972.0,66971.0,0.00185]
[1718319051980,1.03718648,66972.0,66971.0,0.00185]
[1718319052190,0.96502652,66972.0,66971.0,0.00185]
[1718319052989,0.98259965,66972.0,66971.0,0.00185]
[1718319057180,1.09435658,66972.0,66971.0,0.00185]
[1718319057995,0.92579977,66972.0,66971.0,0.00185]
[1718319058203,1.09361281,66972.0,66971.0,0.00185]
[1718319059381,1.23793274,66972.0,66971.0,0.00185]
[1718319059657,1.09361281,66972.0,66971.0,0.00185]
[1718319060219,0.98176777,66972.0,66971.0,0.00185]
[1718319063038,0.92751733,66972.0,66971.0,0.00185]
[1718319063238,1.0394268,66972.0,66971.0,0.00185]
[1718319064242,0.92751733,66972.0,66971.0,0.00185]
[1718319064446,1.05392844,66972.0,66971.0,0.00185]
[1718319064647,1.19824837,66972.0,66971.0,0.00185]
[1718319065816,1.183743,66972.0,66971.0,0.00185]
[1718319065929,1.12608921,66972.0,66971.0,0.00185]
[1718319066651,1.10851608,66972.0,66971.0,0.00185]
[1718319068733,0.96419615,66972.0,66971.0,0.00185]
[1718319069511,0.96419615,66972.0,66971.0,0.08295]
[1718319070594,0.84226307,66972.0,66971.0,0.08295]
[1718319070795,0.8602076,66972.0,66971.0,0.14725]
[1718319071004,0.69998873,66972.0,66971.0,0.14725]
[1718319071411,0.65276166,66972.0,66971.0,0.14725]
[1718319071591,0.84760953,66972.0,66971.0,0.14725]
[1718319072507,0.84760953,66972.0,66971.0,0.00185]
[1718319072716,0.77150937,66972.0,66971.0,0.00185]
[1718319073978,0.5,66958.0,66946.0,0.00086]
[1718319074180,0.5,66958.0,66935.0,0.13419761]
[1718319074181,0.1572,66940.0,66933.0,0.43295979]
[1718319074406,0.1572,66940.0,66931.0,0.00086]
[1718319074407,0.45143695,66939.0,66931.0,0.00086]
[1718319074609,0.55293158,66939.0,66931.0,0.00086]
[1718319074828,0.50822458,66939.0,66931.0,0.00086]
[1718319075046,0.57528509,66939.0,66931.0,0.00086]
[1718319075269,0.49926035,66939.0,66931.0,0.00086]
[1718319075489,0.54392307,66939.0,66931.0,0.00086]
[1718319075936,0.93742971,66939.0,66931.0,0.00086]
[1718319076172,1.14919901,66939.0,66931.0,0.00086]
[1718319076382,1.12665527,66939.0,66931.0,0.00086]
[1718319076823,1.10435031,66939.0,66931.0,0.00086]
[1718319077043,1.10435031,66939.0,66938.0,0.00186]
[1718319077262,1.09097624,66939.0,66938.0,0.00186]
[1718319077477,1.10497624,66939.0,66938.0,0.00186]
[1718319078397,1.05142971,66939.0,66938.0,0.00186]
[1718319078855,1.02642971,66939.0,66938.0,0.00186]
[1718319080491,0.74161707,66939.0,66938.0,0.00186]
[1718319083338,0.68482944,66939.0,66938.0,0.00186]
[1718319083972,0.68482944,66939.0,66938.0,0.06766]
[1718319083973,0.33800876,66939.0,66938.0,0.06766]
[1718319084211,0.40870876,66939.0,66938.0,0.14366]
[1718319084632,0.34674868,66939.0,66938.0,0.14366]
[1718319084828,0.40652168,66939.0,66938.0,0.14366]
[1718319085191,0.33582168,66939.0,66938.0,0.14366]
[1718319085409,0.40652168,66939.0,66938.0,0.14366]
[1718319085955,0.51289385,66939.0,66938.0,0.14366]
[1718319086165,0.51289385,66939.0,66938.0,0.00186]
[1718319086368,0.57488699,66939.0,66938.0,0.00186]
[1718319088831,0.51289385,66939.0,66938.0,0.00186]
[1718319089072,0.57489039,66939.0,66938.0,0.00186]
[1718319089421,0.73191068,66939.0,66938.0,0.00186]
[1718319092194,0.71418193,66939.0,66938.0,0.00186]
[1718319093484,0.53710976,66939.0,66938.0,0.00186]
[1718319093800,0.37990976,66939.0,66938.0,0.00186]
[1718319093988,0.45060976,66939.0,66938.0,0.00186]
[1718319094109,0.62555108,66939.0,66938.0,0.00186]
[1718319095416,0.64855108,66939.0,66938.0,0.00186]
[1718319095617,0.76430274,66939.0,66938.0,0.00186]
[1718319098261,0.82752367,66939.0,66938.0,0.00186]
[1718319098721,1.13752287,66939.0,66938.0,0.00186]
[1718319103645,0.82752809,66939.0,66938.0,0.00186]
[1718319103839,1.13753471,66939.0,66938.0,0.00186]
[1718319105059,1.11979339,66939.0,66938.0,0.00186]
[1718319106923,1.12073939,66939.0,66938.0,0.00186]
[1718319107320,1.17497316,66939.0,66938.0,0.00186]
[1718319108140,1.19248317,66939.0,66938.0,0.00186]
[1718319109393,1.16948317,66939.0,66938.0,0.14706]
[1718319109997,1.1152494,66939.0,66938.0,0.14706]
[1718319112725,1.16950104,66939.0,66938.0,0.14706]
[1718319113766,1.1152494,66939.0,66938.0,0.14706]
[1718319114187,1.16950131,66939.0,66938.0,0.14706]
[1718319117575,0.8873494,66939.0,66938.0,0.14706]
[1718319117798,0.9580494,66939.0,66938.0,0.14706]
[1718319118244,1.00251608,66939.0,66938.0,0.14706]
[1718319118472,0.94051513,66939.0,66938.0,0.14706]
[1718319118669,1.00250812,66939.0,66938.0,0.14706]
[1718319118989,0.98499811,66939.0,66938.0,0.14706]
[1718319119193,1.06269568,66939.0,66938.0,0.14706]
[1718319120059,1.11696044,66939.0,66938.0,0.14706]
[1718319121480,1.06408039,66939.0,66938.0,0.14706]
[1718319121599,1.13478039,66939.0,66938.0,0.14706]
[1718319121838,1.08051563,66939.0,66938.0,0.14706]
[1718319122291,1.13478636,66939.0,66938.0,0.14706]
[1718319122688,1.08051563,66939.0,66938.0,0.14706]
[1718319122901,1.13478925,66939.0,66938.0,0.14706]
[1718319123432,1.01903759,66939.0,66938.0,0.14706]
[1718319123649,1.07672746,66939.0,66938.0,0.14706]
[1718319123877,0.96476397,66939.0,66938.0,0.14706]
[1718319124109,1.0190377,66939.0,66938.0,0.14706]
[1718319124669,1.07672895,66939.0,66938.0,0.14706]
[1718319124881,1.22104888,66939.0,66938.0,0.14706]
[1718319125405,1.1633561,66939.0,66938.0,0.14706]
[1718319126358,1.27532511,66939.0,66938.0,0.14706]
[1718319126613,1.1633561,66939.0,66938.0,0.14706]
[1718319127923,1.10136311,66939.0,66938.0,0.14706]
[1718319128146,1.16335879,66939.0,66938.0,0.14706]
[1718319130188,1.09265879,66939.0,66938.0,0.14706]
[1718319130393,1.16335879,66939.0,66938.0,0.14706]
[1718319132346,1.03838659,66939.0,66938.0,0.14706]
[1718319132551,1.10908659,66939.0,66938.0,0.14706]
[1718319133233,1.16335932,66939.0,66938.0,0.14706]
[1718319133865,1.14553937,66939.0,66938.0,0.14706]
[1718319135230,1.16373046,66939.0,66938.0,0.14706]
[1718319137513,1.16361809,66939.0,66938.0,0.14706]
[1718319139897,1.16361809,66939.0,66938.0,0.00186]
[1718319140075,1.2272586,66939.0,66938.0,0.00186]
[1718319140276,1.2979586,66939.0,66938.0,0.00186]
[1718319140497,1.16361809,66939.0,66938.0,0.00186]
[1718319140902,1.16447027,66939.0,66938.0,0.00186]
[1718319141271,1.29879985,66939.0,66938.0,0.00186]
[1718319142238,1.29880526,66939.0,66938.0,0.00186]
[1718319142914,1.22810526,66939.0,66938.0,0.00186]
[1718319143129,1.15448533,66939.0,66938.0,0.00186]
[1718319144660,1.15448533,66939.0,66938.0,0.07826]
[1718319145408,1.1002126,66939.0,66938.0,0.07826]
[1718319145580,1.1002126,66939.0,66938.0,0.14236]
[1718319145790,1.24453253,66939.0,66938.0,0.14236]
[1718319147395,1.20392113,66939.0,66938.0,0.14236]
[1718319148203,1.0596012,66939.0,66938.0,0.14236]
[1718319148406,0.94769193,66939.0,66938.0,0.14236]
[1718319148608,0.89502229,66939.0,66938.0,0.14236]
[1718319148813,0.98455142,66939.0,66938.0,0.14236]
[1718319149013,1.05525142,66939.0,66938.0,0.14236]
[1718319149756,0.96572229,66939.0,66938.0,0.14236]
[1718319150195,0.84366946,66939.0,66938.0,0.14236]
[1718319150414,0.91977991,66939.0,66938.0,0.14236]
[1718319150600,0.91081678,66939.0,66938.0,0.14236]
[1718319150801,0.91977991,66939.0,66938.0,0.14236]
[1718319151043,0.99695252,66939.0,66938.0,0.14236]
[1718319151375,1.05513841,66939.0,66938.0,0.14236]
[1718319151622,1.12273966,66939.0,66938.0,0.14236]
[1718319151856,1.05514487,66939.0,66938.0,0.14236]
[1718319152148,1.12281742,66939.0,66938.0,0.14236]
[1718319152349,0.99695252,66939.0,66938.0,0.14236]
[1718319152474,1.12287336,66939.0,66938.0,0.14236]
[1718319152682,1.12293929,66939.0,66938.0,0.14236]
[1718319153090,0.98798939,66939.0,66938.0,0.14236]
[1718319153322,0.91728939,66939.0,66938.0,0.14236]
[1718319153523,0.98798939,66939.0,66938.0,0.14236]
[1718319153933,1.1229317,66939.0,66938.0,0.14236]
[1718319154320,1.11414793,66939.0,66938.0,0.14236]
[1718319154524,0.98798939,66939.0,66938.0,0.14236]
[1718319154836,0.84366946,66939.0,66938.0,0.14236]
[1718319155655,0.91081429,66939.0,66938.0,0.14236]
[1718319155853,0.84365965,66939.0,66938.0,0.14236]
[1718319156271,1.06856954,66939.0,66938.0,0.14236]
[1718319156470,1.05960557,66939.0,66938.0,0.14236]
[1718319156693,1.06856934,66939.0,66938.0,0.14236]
[1718319157167,1.06856427,66939.0,66938.0,0.14236]
[1718319160037,1.05053391,66939.0,66938.0,0.14236]
[1718319160241,0.8902995,66939.0,66938.0,0.14236]
[1718319160453,1.0415701,66939.0,66938.0,0.14236]
[1718319161071,0.95203569,66939.0,66938.0,0.14236]
[1718319162991,0.96972589,66939.0,66938.0,0.14236]
[1718319164621,0.84331949,66939.0,66938.0,0.14236]
[1718319164804,1.10187973,66939.0,66938.0,0.14236]
[1718319165149,1.19142381,66939.0,66938.0,0.14236]
[1718319165354,1.10187973,66939.0,66938.0,0.14236]
[1718319166485,1.21381089,66939.0,66938.0,0.14236]
[1718319166852,1.10187973,66939.0,66938.0,0.14236]
[1718319167582,1.21381089,66939.0,66938.0,0.14236]
[1718319167993,1.10187973,66939.0,66938.0,0.14236]
[1718319169007,1.21381365,66939.0,66938.0,0.14236]
[1718319169410,1.10187973,66939.0,66938.0,0.14236]
[1718319170713,0.89684778,66939.0,66938.0,0.14236]
[1718319170883,0.96754778,66939.0,66938.0,0.14236]
[1718319171074,0.89684778,66939.0,66938.0,0.14236]
[1718319171278,1.05709806,66939.0,66938.0,0.14236]
[1718319172704,0.98639806,66939.0,66938.0,0.14236]
[1718319173089,1.05709806,66939.0,66938.0,0.14236]
[1718319173473,1.03940786,66939.0,66938.0,0.14236]
[1718319173906,1.06179484,66939.0,66938.0,0.14236]
[1718319174126,0.99109484,66939.0,66938.0,0.14236]
[1718319174343,1.06179484,66939.0,66938.0,0.14236]
[1718319174552,0.99109484,66939.0,66938.0,0.14236]
[1718319174808,1.06179484,66939.0,66938.0,0.14236]
[1718319175582,1.0795311,66939.0,66938.0,0.14236]
[1718319175783,1.20146779,66939.0,66938.0,0.14236]
[1718319176145,1.11191377,66939.0,66938.0,0.14236]
[1718319176531,1.22385103,66939.0,66938.0,0.14236]
[1718319177579,1.15315103,66939.0,66938.0,0.14236]
[1718319177783,1.22385103,66939.0,66938.0,0.14236]
[1718319178094,1.15315103,66939.0,66938.0,0.14236]
[1718319178295,1.22385103,66939.0,66938.0,0.14236]
[1718319178541,1.15315103,66939.0,66938.0,0.14236]
[1718319178741,1.22385103,66939.0,66938.0,0.14236]
[1718319179364,1.27811403,66939.0,66938.0,0.14236]
[1718319179932,1.20741403,66939.0,66938.0,0.14236]
[1718319180124,1.27811403,66939.0,66938.0,0.14236]
[1718319180818,1.11191377,66939.0,66938.0,0.14236]
[1718319181353,1.27811243,66939.0,66938.0,0.14236]
[1718319181557,1.16617517,66939.0,66938.0,0.14236]
[1718319181764,1.11191377,66939.0,66938.0,0.14236]
[1718319181967,1.04121377,66939.0,66938.0,0.14236]
[1718319182180,1.11191377,66939.0,66938.0,0.14236]
[1718319182424,1.20146864,66939.0,66938.0,0.14236]
[1718319182630,1.11191377,66939.0,66938.0,0.14236]
[1718319183527,1.2014719,66939.0,66938.0,0.14236]
[1718319184372,1.11191377,66939.0,66938.0,0.00186]
[1718319184580,1.26037706,66939.0,66938.0,0.00186]
[1718319184795,1.1484398,66939.0,66938.0,0.00186]
[1718319188395,1.16633884,66939.0,66938.0,0.00186]
[1718319190175,1.16633884,66939.0,66931.0,0.08286]
[1718319190369,0.14431993,66937.0,66931.0,0.08286]
[1718319190569,0.85888058,66937.0,66931.0,0.08286]
[1718319191422,0.85888058,66937.0,66936.0,0.00186]
[1718319192021,0.85888058,66937.0,66936.0,0.00086]
[1718319192346,0.87288058,66937.0,66936.0,0.00186]
[1718319193456,1.01720051,66937.0,66936.0,0.00186]
[1718319197005,1.01720051,66937.0,66931.0,0.08286]
[1718319197006,0.5,66932.0,66931.0,0.08286]
[1718319197207,1.4871773,66932.0,66931.0,0.08286]
[1718319197643,1.37531829,66932.0,66931.0,0.08286]
[1718319198047,1.4871773,66932.0,66931.0,0.08286]
[1718319198333,1.52863822,66932.0,66931.0,0.00186]
[1718319198531,1.64049723,66932.0,66931.0,0.00186]
[1718319199541,1.58286327,66932.0,66931.0,0.00186]
[1718319206985,1.57191505,66932.0,66931.0,0.00186]
[1718319207343,1.62946157,66932.0,66931.0,0.00186]
[1718319207674,1.5719132,66932.0,66931.0,0.00186]
[1718319207879,1.51769,66932.0,66931.0,0.00186]
[1718319208248,1.62945457,66932.0,66931.0,0.00186]
[1718319210057,1.57192211,66932.0,66931.0,0.00186]
[1718319210241,1.68369658,66932.0,66931.0,0.00186]
[1718319211236,1.71029991,66932.0,66931.0,0.00186]
[1718319212064,1.6560678,66932.0,66931.0,0.00186]
[1718319212653,1.54429333,66932.0,66931.0,0.00186]
[1718319212865,1.6560678,66932.0,66931.0,0.00186]
[1718319213278,1.71029886,66932.0,66931.0,0.00186]
[1718319215305,1.72789984,66932.0,66931.0,0.00186]
[1718319215505,1.5028453,66932.0,66927.0,0.1408]
[1718319215714,0.32677817,66928.0,66927.0,0.1408]
[1718319215907,0.9170793,66928.0,66927.0,0.1408]
[1718319216329,0.8463793,66928.0,66927.0,0.1408]
[1718319216541,0.9170793,66928.0,66927.0,0.1408]
[1718319216746,1.06139923,66928.0,66927.0,0.1408]
[1718319216956,1.06139923,66928.0,66927.0,0.1458]
[1718319217225,1.06139923,66928.0,66927.0,0.0839]
[1718319217423,0.5,66924.0,66923.0,0.14266]
[1718319217640,1.46245786,66924.0,66923.0,0.14266]
[1718319217970,1.39540993,66924.0,66923.0,0.14266]
[1718319218140,1.48480717,66924.0,66923.0,0.14266]
[1718319219297,1.41410717,66924.0,66923.0,0.14266]
[1718319219726,1.48480717,66924.0,66923.0,0.14266]
[1718319219925,1.48480717,66924.0,66923.0,0.14666]
[1718319220342,1.44963787,66924.0,66923.0,0.14666]
[1718319220748,1.54501443,66924.0,66923.0,0.14666]
[1718319220954,1.45563787,66924.0,66923.0,0.14666]
[1718319221149,1.4907867,66924.0,66923.0,0.14666]
[1718319221708,1.45563735,66924.0,66923.0,0.14666]
[1718319223675,1.45563735,66924.0,66923.0,0.00476]
[1718319223898,1.56739559,66924.0,66923.0,0.00476]
[1718319224361,1.49669559,66924.0,66923.0,0.00476]
[1718319224560,1.56139559,66924.0,66923.0,0.00476]
[1718319224799,1.56139559,66924.0,66923.0,0.00076]
[1718319225177,1.57539559,66924.0,66923.0,0.00076]
[1718319225378,1.46363735,66924.0,66923.0,0.00076]
[1718319226734,1.57539559,66924.0,66923.0,0.00076]
[1718319227343,1.46363735,66924.0,66923.0,0.00076]
[1718319228876,1.57539559,66924.0,66923.0,0.00076]
[1718319229668,1.46363735,66924.0,66923.0,0.00076]
[1718319229899,1.57534126,66924.0,66923.0,0.00076]
[1718319230558,1.59299589,66924.0,66923.0,0.00076]
[1718319231654,1.48129198,66924.0,66923.0,0.00076]
[1718319233043,1.41059198,66924.0,66923.0,0.14126]
[1718319233289,1.59303327,66924.0,66923.0,0.14126]
[1718319233559,1.5164695,66924.0,66923.0,0.14126]
[1718319234411,1.48129702,66924.0,66923.0,0.14126]
[1718319234605,1.1712904,66924.0,66923.0,0.14126]
[1718319234794,1.34662433,66924.0,66923.0,0.14126]
[1718319235965,1.34662433,66924.0,66923.0,0.00076]
[1718319236593,1.36962433,66924.0,66923.0,0.00076]
[1718319240665,0.5,66915.0,66914.0,0.00086]
[1718319240793,1.01641731,66915.0,66914.0,0.00086]
[1718319240994,1.18512677,66915.0,66914.0,0.00086]
[1718319241223,1.09571731,66915.0,66913.0,0.1483]
[1718319241414,0.6351207,66914.0,66913.0,0.1483]
[1718319241804,0.59994178,66914.0,66913.0,0.1483]
[1718319242025,0.73318214,66914.0,66913.0,0.1483]
[1718319242243,0.67895767,66914.0,66913.0,0.1483]
[1718319242682,0.73318224,66914.0,66913.0,0.1483]
[1718319242901,0.67895767,66914.0,66913.0,0.1483]
[1718319244239,0.68595767,66914.0,66913.0,0.1503]
[1718319244467,0.75665767,66914.0,66913.0,0.1503]
[1718319244692,0.75401858,66914.0,66913.0,0.1503]
[1718319245177,0.84340291,66914.0,66913.0,0.002]
[1718319245410,0.75401858,66914.0,66913.0,0.002]
[1718319246321,0.84340039,66914.0,66913.0,0.002]
[1718319249071,0.77270039,66914.0,66913.0,0.002]
[1718319249321,0.84340039,66914.0,66913.0,0.002]
[1718319249978,0.83640039,66914.0,66912.0,0.083]
[1718319250175,0.58739815,66913.0,66912.0,0.083]
[1718319250449,0.68739815,66913.0,66912.0,0.083]
[1718319251446,0.68739815,66913.0,66912.0,0.085]
[1718319251843,0.74719615,66913.0,66912.0,0.083]
[1718319252023,0.74719615,66913.0,66911.0,0.004]
[1718319252228,0.69241012,66912.0,66911.0,0.004]
[1718319252427,0.69241012,66912.0,66911.0,0.1523]
[1718319252428,0.86982037,66912.0,66911.0,0.1523]
[1718319252628,0.90169981,66912.0,66911.0,0.1523]
[1718319252858,0.75809815,66912.0,66911.0,0.1523]
[1718319253463,0.54307822,66912.0,66911.0,0.1523]
[1718319253683,0.61377822,66912.0,66911.0,0.1523]
[1718319254297,0.62777822,66912.0,66911.0,0.1523]
[1718319254496,0.6764698,66912.0,66911.0,0.1533]
[1718319254720,0.6624698,66912.0,66911.0,0.1533]
[1718319255009,0.80278973,66912.0,66911.0,0.1523]
[1718319255226,0.80678973,66912.0,66911.0,0.1533]
[1718319255356,0.76209815,66912.0,66911.0,0.1533]
[1718319256391,0.69139815,66912.0,66911.0,0.1533]
[1718319256586,0.56107822,66912.0,66911.0,0.1533]
[1718319256816,0.67647477,66912.0,66911.0,0.1533]
[1718319257174,0.61777822,66912.0,66911.0,0.1533]
[1718319257594,0.62777822,66912.0,66911.0,0.1523]
[1718319258037,0.63177822,66912.0,66911.0,0.1523]
[1718319259794,0.57918676,66912.0,66911.0,0.1523]
[1718319260251,0.64988676,66912.0,66911.0,0.1523]
[1718319260490,0.64769416,66912.0,66911.0,0.1523]
[1718319260691,0.57699416,66912.0,66911.0,0.1523]
[1718319260906,0.64769416,66912.0,66911.0,0.1523]
[1718319261452,0.64742316,66912.0,66911.0,0.1523]
[1718319265063,0.47208923,66912.0,66911.0,0.1523]
[1718319265287,0.41314983,66912.0,66911.0,0.1523]
[1718319267470,0.34244983,66912.0,66911.0,0.1523]
[1718319267641,0.41314983,66912.0,66911.0,0.1523]
[1718319267925,0.41314983,66912.0,66911.0,0.15316]
[1718319268882,0.39504129,66912.0,66911.0,0.15316]
[1718319269701,0.4131588,66912.0,66911.0,0.15316]
[1718319280763,0.40944085,66912.0,66911.0,0.15316]
[1718319280992,0.32062334,66912.0,66911.0,0.15316]
[1718319281193,0.39132334,66912.0,66911.0,0.15316]
[1718319281418,0.32062334,66912.0,66911.0,0.15316]
[1718319281622,0.39132334,66912.0,66911.0,0.15316]
[1718319282439,0.50803578,66912.0,66911.0,0.15316]
[1718319282613,0.39132334,66912.0,66911.0,0.15316]
[1718319282816,0.50760268,66912.0,66911.0,0.15316]
[1718319283029,0.50760268,66912.0,66911.0,0.00486]
[1718319283226,0.56505069,66912.0,66911.0,0.08346]
[1718319283832,0.56505069,66912.0,66911.0,0.14676]
[1718319283833,0.49435069,66912.0,66911.0,0.14676]
[1718319284187,0.58329519,66912.0,66911.0,0.14676]
[1718319290479,0.58358612,66912.0,66911.0,0.14676]
[1718319291436,0.58358612,66912.0,66911.0,0.08346]
[1718319294060,0.62834211,66912.0,66911.0,0.08346]
[1718319294268,0.61009761,66912.0,66911.0,0.08346]
[1718319297224,0.56534162,66912.0,66911.0,0.08346]
[1718319297844,0.61013603,66912.0,66911.0,0.08346]
[1718319298253,0.56534162,66912.0,66911.0,0.08346]
[1718319298687,0.5831821,66912.0,66911.0,0.08346]
[1718319300122,0.58325505,66912.0,66911.0,0.08346]
[1718319300282,0.65038904,66912.0,66911.0,0.08346]
[1718319301310,0.62807214,66912.0,66911.0,0.08346]
[1718319301575,0.58325505,66912.0,66911.0,0.08346]
[1718319301977,0.62807214,66912.0,66911.0,0.08346]
[1718319302871,0.62807214,66912.0,66911.0,0.14976]
[1718319303087,0.55737214,66912.0,66911.0,0.14976]
[1718319303284,0.62807214,66912.0,66911.0,0.14976]
[1718319304678,0.55737214,66912.0,66911.0,0.14976]
[1718319304885,0.62807214,66912.0,66911.0,0.14976]
[1718319305335,0.55737214,66912.0,66911.0,0.14976]
[1718319305506,0.62807214,66912.0,66911.0,0.14976]
[1718319305955,0.58325505,66912.0,66911.0,0.14976]
[1718319306159,0.62807646,66912.0,66911.0,0.14976]
[1718319306759,0.58325505,66912.0,66911.0,0.14976]
[1718319307095,0.62808006,66912.0,66911.0,0.14976]
[1718319307878,0.58325505,66912.0,66911.0,0.14976]
[1718319308289,0.62808006,66912.0,66911.0,0.14976]
[1718319308884,0.58325505,66912.0,66911.0,0.14976]
[1718319309290,0.62808006,66912.0,66911.0,0.14976]
[1718319309653,0.61023958,66912.0,66911.0,0.14976]
[1718319310275,0.56541457,66912.0,66911.0,0.14976]
[1718319310692,0.49396024,66912.0,66911.0,0.14976]
[1718319310894,0.62340524,66912.0,66911.0,0.14976]
[1718319315231,0.64167675,66912.0,66911.0,0.14976]
[1718319319489,0.59685174,66912.0,66911.0,0.14976]
[1718319319671,0.46740674,66912.0,66911.0,0.14976]
[1718319319921,0.51223221,66912.0,66911.0,0.14976]
[1718319321872,0.51223221,66912.0,66911.0,0.00486]
[1718319322082,0.46740674,66912.0,66911.0,0.00486]
[1718319322285,0.53464668,66912.0,66911.0,0.00486]
[1718319324299,0.51637517,66912.0,66911.0,0.00486]
[1718319327294,0.53417051,66912.0,66911.0,0.00486]
[1718319327502,0.46693057,66912.0,66911.0,0.00486]
[1718319327698,0.57898771,66912.0,66911.0,0.00486]
[1718319329531,0.50828771,66912.0,66911.0,0.00486]
[1718319329730,0.57898771,66912.0,66911.0,0.00486]
[1718319330318,0.46287241,66912.0,66911.0,0.00486]
[1718319330539,0.70378743,66912.0,66911.0,0.00486]
[1718319330738,0.5711692,66912.0,66911.0,0.00486]
[1718319333256,0.45911824,66912.0,66911.0,0.00486]
[1718319333677,0.57116056,66912.0,66911.0,0.00486]
[1718319333874,0.45911824,66912.0,66911.0,0.00486]
[1718319334595,0.57116056,66912.0,66911.0,0.00486]
[1718319335000,0.45911824,66912.0,66911.0,0.00486]
[1718319337989,0.5212359,66912.0,66911.0,0.00486]
[1718319338196,0.45911824,66912.0,66911.0,0.14876]
[1718319338418,0.5309347,66912.0,66911.0,0.14876]
[1718319339803,0.54879432,66912.0,66911.0,0.14876]
[1718319341626,0.54879432,66912.0,66911.0,0.08576]
[1718319342781,0.57122484,66912.0,66911.0,0.00486]
[1718319343483,0.5,66906.0,66905.0,0.00086]
[1718319343691,0.5,66898.0,66897.0,0.00086]
[1718319343873,0.8233229,66898.0,66897.0,0.00086]
[1718319344076,0.9233229,66898.0,66897.0,0.01264406]
[1718319344295,0.9233229,66898.0,66897.0,0.00086]
[1718319344503,0.99047872,66898.0,66897.0,0.00086]
[1718319345331,0.9233229,66898.0,66897.0,0.00086]
[1718319345532,0.9273229,66898.0,66897.0,0.00186]
[1718319346399,0.97206718,66898.0,66897.0,0.00186]
[1718319346615,0.98306718,66898.0,66897.0,0.00186]
[1718319346824,1.03682727,66898.0,66897.0,0.00186]
[1718319347037,1.10752727,66898.0,66897.0,0.00186]
[1718319347496,1.06278317,66898.0,66897.0,0.00186]